[Event "Reykjavik Open 2025"]
[Site "Reykjavik, Iceland"]
[Date "2025.04.15"]
[Round "9.31"]
[White "Petersen, Marcel"]
[Black "Williams, Simon K"]
[Result "1/2-1/2"]
[WhiteElo "2185"]
[WhiteFideId "12935670"]
[BlackElo "2451"]
[BlackTitle "GM"]
[BlackFideId "404454"]
[TimeControl "90+30 +30 after 40 moves"]
[Variant "Standard"]
[ECO "B40"]
[Opening "Sicilian Defense: French Variation"]
[StudyName "Round 9"]
1. e4 { [%clk 1:30:57] } 1... c5 { [%clk 1:29:46] } 2. Nf3 { [%clk 1:31:21] } 2... e6 { [%clk 1:29:19] } 3. g3 { [%clk 1:31:36] } 3... d5 { [%clk 1:29:29] } 4. exd5 { [%clk 1:31:55] } 4... exd5 { [%clk 1:29:46] } 5. d4 { [%clk 1:32:18] } 5... cxd4 { [%clk 1:30:11] } 6. Nxd4 { [%clk 1:31:22] } 6... Nc6 { [%clk 1:29:16] } 7. Bg2 { [%clk 1:27:13] } 7... Bc5 { [%clk 1:29:36] } 8. c3 { [%clk 1:24:07] } 8... Nf6 { [%clk 1:26:00] } 9. O-O { [%clk 1:24:07] } 9... O-O { [%clk 1:26:22] } 10. Nb3 { [%clk 1:19:24] } 10... Bb6 { [%clk 1:26:42] } 11. N1d2 { [%clk 1:16:42] } 11... Bg4 { [%clk 1:22:33] } 12. Nf3 { [%clk 1:16:21] } 12... Qd7 { [%clk 1:19:17] } 13. Re1 { [%clk 1:14:02] } 13... Rfe8 { [%clk 1:19:11] } 14. Bf4 { [%clk 1:08:32] } 14... Qf5 { [%clk 1:12:15] } 15. Nfd4 { [%clk 0:59:39] } 15... Rxe1+ { [%clk 0:31:16] } 16. Qxe1 { [%clk 0:59:47] } 16... Qh5 { [%clk 0:31:39] } 17. Qd2 { [%clk 0:55:00] } 17... Ne4 { [%clk 0:31:08] } 18. Qd3 { [%clk 0:53:33] } 18... g5 { [%clk 0:30:32] } 19. Be3 { [%clk 0:47:56] } 19... Ne5 { [%clk 0:29:09] } 20. Qf1 { [%clk 0:47:18] } 20... Re8 { [%clk 0:25:56] } 21. Re1 { [%clk 0:46:22] } 21... Bd7 { [%clk 0:22:47] } 22. f3 { [%clk 0:35:59] } 22... Nf6 { [%clk 0:23:08] } 23. Bxg5 { [%clk 0:34:26] } 23... Qxg5 { [%clk 0:11:43] } 24. f4 { [%clk 0:34:49] } 24... Qh5 { [%clk 0:12:02] } 25. Rxe5 { [%clk 0:33:49] } 25... Rxe5 { [%clk 0:12:26] } 26. fxe5 { [%clk 0:34:14] } 26... Ng4 { [%clk 0:11:23] } 27. h3 { [%clk 0:28:45] } 27... Ne3 { [%clk 0:11:47] } 28. Qf3 { [%clk 0:29:04] } 28... Qxe5 { [%clk 0:12:03] } 29. Qf4 { [%clk 0:28:55] } 29... Qxf4 { [%clk 0:11:23] } 30. gxf4 { [%clk 0:29:17] } 30... a5 { [%clk 0:08:16] } 31. Kh2 { [%clk 0:25:43] } 31... Bc7 { [%clk 0:06:43] } 32. Kg3 { [%clk 0:25:55] } 32... Nxg2 { [%clk 0:06:25] } 33. Kxg2 { [%clk 0:26:18] } 33... b6 { [%clk 0:06:29] } 34. Kg3 { [%clk 0:25:42] } 34... Kg7 { [%clk 0:06:43] } 35. Nc1 { [%clk 0:25:22] } 35... Kf6 { [%clk 0:07:00] } 36. Nd3 { [%clk 0:24:55] } 36... Bd6 { [%clk 0:06:17] } 37. Nf2 { [%clk 0:24:37] } 37... h5 { [%clk 0:05:49] } 38. Nd3 { [%clk 0:22:45] } 38... Bc8 { [%clk 0:04:03] } 39. Nc6 { [%clk 0:20:25] } 39... Kf5 { [%clk 0:03:45] } 40. Kf3 { [%clk 0:13:34] } 40... f6 { [%clk 0:03:49] } 41. Nd4+ { [%clk 0:08:22] } 41... Kg6 { [%clk 0:04:14] } 42. Kg3 { [%clk 0:08:11] } 42... Ba6 { [%clk 0:04:13] } 43. Ne1 { [%clk 0:08:22] } 43... h4+ { [%clk 0:02:07] } 44. Kg4 { [%clk 0:08:34] } 44... f5+ { [%clk 0:01:35] } 45. Kf3 { [%clk 0:07:05] } 45... Bf1 { [%clk 0:01:48] } 46. Nec2 { [%clk 0:06:02] } 46... Bd3 { [%clk 0:30:23] } 47. Ke3 { [%clk 0:34:22] } 47... Be4 { [%clk 0:30:20] } 48. Ne1 { [%clk 0:30:17] } 48... Bc5 { [%clk 0:29:15] } 49. Nf3 { [%clk 0:29:15] } 49... Kh5 { [%clk 0:29:36] } 50. Ne1 { [%clk 0:28:05] } 50... b5 { [%clk 0:28:13] } 51. a3 { [%clk 0:25:47] } 51... b4 { [%clk 0:28:05] } 52. axb4 { [%clk 0:26:01] } 52... axb4 { [%clk 0:28:31] } 53. Nd3 { [%clk 0:26:01] } 53... bxc3 { [%clk 0:28:41] } 54. bxc3 { [%clk 0:26:15] } 54... Bb6 { [%clk 0:27:57] } 55. Ne1 { [%clk 0:24:56] } 55... Bh1 { [%clk 0:26:09] } 56. Kd3 { [%clk 0:24:28] } 56... Bc7 { [%clk 0:26:22] } 57. Ke3 { [%clk 0:24:36] } 57... Bb6 { [%clk 0:25:31] } 58. Kd3 { [%clk 0:24:43] } 58... Bc5 { [%clk 0:25:42] } 59. Ke3 { [%clk 0:24:37] } 59... Ba3 { [%clk 0:23:44] } 60. Kd2 { [%clk 0:24:46] } 60... Be4 { [%clk 0:23:05] } 61. Nef3 { [%clk 0:24:56] } 61... Be7 { [%clk 0:23:12] } 62. Ke3 { [%clk 0:24:19] } 62... Kg6 { [%clk 0:23:27] } 63. Nc6 { [%clk 0:17:59] } 63... Bf6 { [%clk 0:23:31] } 64. Nce5+ { [%clk 0:15:58] } 64... Kh5 { [%clk 0:22:22] } 65. Ne1 { [%clk 0:15:37] } 65... Bh1 { [%clk 0:20:54] } 66. Kd3 { [%clk 0:13:29] } 66... Bd8 { [%clk 0:17:12] } 67. Nc6 { [%clk 0:13:41] } 67... Bf6 { [%clk 0:16:00] } 68. Ne5 { [%clk 0:13:55] } 68... Kh6 { [%clk 0:16:08] } 69. Ke3 { [%clk 0:13:47] } 69... Kg7 { [%clk 0:15:58] } 70. Kd3 { [%clk 0:13:25] } 70... Bd8 { [%clk 0:08:18] } 71. Nc6 { [%clk 0:13:40] } 71... Bb6 { [%clk 0:07:56] } 72. Nd4 { [%clk 0:13:55] } 72... Kf7 { [%clk 0:07:49] } 73. Kd2 { [%clk 0:11:17] } 73... Kf6 { [%clk 0:07:04] } 74. Kd3 { [%clk 0:11:08] } 74... Bd8 { [%clk 0:05:56] } 75. Ke3 { [%clk 0:11:15] } 75... Ba5 { [%clk 0:05:21] } 76. Kd2 { [%clk 0:11:10] } 76... Bd8 { [%clk 0:05:23] } 77. Ke3 { [%clk 0:11:30] } 77... Be4 { [%clk 0:05:08] } 78. Nef3 { [%clk 0:11:20] } 78... Kf7 { [%clk 0:04:57] } 79. Ng5+ { [%clk 0:11:06] } 79... Kg6 { [%clk 0:04:50] } 80. Ndf3 { [%clk 0:09:35] } 80... Bb6+ { [%clk 0:04:47] } 81. Ke2 { [%clk 0:09:28] } 81... Kh5 { [%clk 0:04:55] } 82. Nd4 { [%clk 0:09:28] } 82... Bg2 { [%clk 0:04:39] } 83. Kf2 { [%clk 0:09:41] } 83... Be4 { [%clk 0:04:26] } 84. Ke2 { [%clk 0:10:02] } 84... Bc5 { [%clk 0:04:41] } 85. Ke3 { [%clk 0:09:36] } 85... Bh1 { [%clk 0:04:49] } 86. Ke2 { [%clk 0:09:48] } 86... Be7 { [%clk 0:04:12] } 87. Ndf3 { [%clk 0:09:51] } 87... Bf6 { [%clk 0:04:21] } 88. Kd3 { [%clk 0:09:02] } 88... Bg2 { [%clk 0:04:46] } 89. Kd2 { [%clk 0:09:23] } 89... Bh8 { [%clk 0:03:58] } 90. Nd4 { [%clk 0:08:44] } 90... Bxd4 { [%clk 0:03:17] } 91. cxd4 { [%clk 0:09:09] } 91... Bxh3 { [%clk 0:03:45] } 92. Nxh3 { [%clk 0:06:58] } 92... Kg4 { [%clk 0:04:11] } 93. Nf2+ { [%clk 0:07:22] } 93... Kf3 { [%clk 0:04:02] } 94. Ke1 { [%clk 0:06:36] } 94... Kg2 { [%clk 0:04:21] } 95. Nd1 { [%clk 0:06:03] } 95... h3 { [%clk 0:04:06] } 96. Ne3+ { [%clk 0:06:26] } 96... Kf3 { [%clk 0:03:49] } 97. Nf1 { [%clk 0:06:41] } 97... Kg2 { [%clk 0:02:16] } 98. Ne3+ { [%clk 0:07:05] } 98... Kg3 { [%clk 0:02:20] } 99. Nf1+ { [%clk 0:04:17] } 99... Kf3 { [%clk 0:02:43] } 100. Nh2+ { [%clk 0:04:39] } 100... Ke3 { [%clk 0:01:19] } 101. Nf1+ { [%clk 0:04:39] } 101... Kxd4 { [%clk 0:00:57] } 102. Kf2 { [%clk 0:04:58] } 102... Kd3 { [%clk 0:01:08] } 103. Nh2 { [%clk 0:04:02] } 103... d4 { [%clk 0:01:30] } 104. Nf3 { [%clk 0:04:15] } 104... Ke4 { [%clk 0:00:53] } 105. Kg3 { [%clk 0:04:37] } 105... d3 { [%clk 0:01:15] } 106. Nd2+ { [%clk 0:04:47] } 106... Ke3 { [%clk 0:01:04] } 107. Nc4+ { [%clk 0:04:45] } 107... Ke2 { [%clk 0:01:07] } 108. Kxh3 { [%clk 0:04:57] } 108... d2 { [%clk 0:01:19] } 109. Nxd2 { [%clk 0:04:55] } 109... Kxd2 { [%clk 0:01:45] } 110. Kh2 { [%clk 0:04:58] } 110... Ke3 { [%clk 0:02:11] } 111. Kg3 { [%clk 0:05:24] } 111... Ke4 { [%clk 0:02:37] } 112. Kg2 { [%clk 0:05:50] } 1/2-1/2

[Event "Reykjavik Open 2025"]
[Site "Reykjavik, Iceland"]
[Date "2025.04.15"]
[Round "9.32"]
[White "Gunnarsson, Jon Viktor"]
[Black "Kavutskiy, Kostya"]
[Result "1-0"]
[WhiteElo "2439"]
[WhiteTitle "IM"]
[WhiteFideId "2300931"]
[BlackElo "2351"]
[BlackTitle "IM"]
[BlackFideId "2026384"]
[TimeControl "90+30 +30 after 40 moves"]
[Variant "Standard"]
[ECO "B90"]
[Opening "Sicilian Defense: Najdorf Variation, Freak Attack"]
[StudyName "Round 9"]
1. e4 { [%clk 1:30:57] } 1... c5 { [%clk 1:30:45] } 2. Nf3 { [%clk 1:31:17] } 2... d6 { [%clk 1:31:07] } 3. d4 { [%clk 1:31:21] } 3... cxd4 { [%clk 1:31:29] } 4. Nxd4 { [%clk 1:31:43] } 4... Nf6 { [%clk 1:31:53] } 5. Nc3 { [%clk 1:31:42] } 5... a6 { [%clk 1:32:11] } 6. Rg1 { [%clk 1:31:59] } 6... g6 { [%clk 1:27:42] } 7. g4 { [%clk 1:31:05] } 7... Nc6 { [%clk 1:26:08] } 8. g5 { [%clk 1:23:23] } 8... Nd7 { [%clk 1:23:55] } 9. Be3 { [%clk 1:22:53] } 9... h6 { [%clk 1:23:35] } 10. h4 { [%clk 1:18:16] } 10... hxg5 { [%clk 1:20:45] } 11. hxg5 { [%clk 1:17:04] } 11... Bg7 { [%clk 1:19:44] } 12. Qd2 { [%clk 1:13:08] } 12... Nde5 { [%clk 1:18:41] } 13. Be2 { [%clk 1:07:44] } 13... Ng4 { [%clk 1:17:28] } 14. Bxg4 { [%clk 0:49:22] } 14... Bxg4 { [%clk 1:16:41] } 15. f4 { [%clk 0:41:37] } 15... Nxd4 { [%clk 1:01:58] } 16. Bxd4 { [%clk 0:42:02] } 16... e5 { [%clk 1:01:44] } 17. Be3 { [%clk 0:36:21] } 17... Be6 { [%clk 0:50:00] } 18. O-O-O { [%clk 0:34:42] } 18... Rc8 { [%clk 0:36:24] } 19. Rh1 { [%clk 0:22:14] } 19... Rxh1 { [%clk 0:22:20] } 20. Rxh1 { [%clk 0:19:53] } 20... Kf8 { [%clk 0:21:21] } 21. Nd5 { [%clk 0:18:19] } 21... Bxd5 { [%clk 0:19:02] } 22. Qxd5 { [%clk 0:18:09] } 22... Qc7 { [%clk 0:18:39] } 23. c3 { [%clk 0:17:27] } 23... Qc6 { [%clk 0:18:57] } 24. Qxc6 { [%clk 0:14:54] } 24... bxc6 { [%clk 0:18:44] } 25. f5 { [%clk 0:14:40] } 25... gxf5 { [%clk 0:18:25] } 26. exf5 { [%clk 0:15:05] } 26... Kg8 { [%clk 0:18:31] } 27. Kd2 { [%clk 0:13:09] } 27... d5 { [%clk 0:18:11] } 28. Bc5 { [%clk 0:13:05] } 28... Bf8 { [%clk 0:15:48] } 29. Bxf8 { [%clk 0:12:39] } 29... Rxf8 { [%clk 0:16:13] } 30. Rh6 { [%clk 0:11:51] } 30... f6 { [%clk 0:11:24] } 31. Rg6+ { [%clk 0:08:11] } 31... Kh7 { [%clk 0:11:47] } 32. gxf6 { [%clk 0:08:08] } 32... a5 { [%clk 0:10:22] } 33. a4 { [%clk 0:06:33] } 33... d4 { [%clk 0:07:01] } 34. Kd3 { [%clk 0:04:29] } 34... c5 { [%clk 0:02:30] } 35. Ke4 { [%clk 0:04:15] } 35... Rg8 { [%clk 0:00:35] } 36. f7 { [%clk 0:02:10] } 36... Rf8 { [%clk 0:00:42] } 37. Kxe5 { [%clk 0:02:00] } 37... Rxf7 { [%clk 0:01:05] } 38. cxd4 { [%clk 0:01:15] } 38... cxd4 { [%clk 0:01:29] } 39. Rd6 { [%clk 0:00:55] } 39... Re7+ { [%clk 0:00:49] } 40. Kxd4 { [%clk 0:00:52] } 40... Rb7 { [%clk 0:01:04] } 41. Kc3 { [%clk 0:01:11] } 1-0

[Event "Reykjavik Open 2025"]
[Site "Reykjavik, Iceland"]
[Date "2025.04.15"]
[Round "9.33"]
[White "Harish, Neeraj"]
[Black "Hagner, Bennet"]
[Result "0-1"]
[WhiteElo "2169"]
[WhiteTitle "CM"]
[WhiteFideId "30958130"]
[BlackElo "2430"]
[BlackTitle "FM"]
[BlackFideId "16224477"]
[TimeControl "90+30 +30 after 40 moves"]
[Variant "Standard"]
[ECO "C55"]
[Opening "Italian Game: Two Knights Defense, Modern Bishop's Opening"]
[StudyName "Round 9"]
1. e4 { [%clk 1:30:53] } 1... e5 { [%clk 1:30:51] } 2. Nf3 { [%clk 1:31:15] } 2... Nc6 { [%clk 1:31:12] } 3. Bc4 { [%clk 1:31:27] } 3... Nf6 { [%clk 1:31:33] } 4. d3 { [%clk 1:31:49] } 4... h6 { [%clk 1:31:56] } 5. O-O { [%clk 1:31:19] } 5... a6 { [%clk 1:32:18] } 6. a4 { [%clk 1:28:33] } 6... d6 { [%clk 1:31:54] } 7. Nc3 { [%clk 1:27:47] } 7... g5 { [%clk 1:32:11] } 8. Nd5 { [%clk 1:23:12] } 8... Bg7 { [%clk 1:29:11] } 9. c3 { [%clk 1:21:58] } 9... Nxd5 { [%clk 1:25:26] } 10. exd5 { [%clk 1:16:21] } 10... Ne7 { [%clk 1:25:40] } 11. d4 { [%clk 1:15:54] } 11... g4 { [%clk 1:20:23] } 12. Ne1 { [%clk 1:09:37] } 12... exd4 { [%clk 1:02:35] } 13. cxd4 { [%clk 1:06:29] } 13... O-O { [%clk 1:01:30] } 14. Ra3 { [%clk 1:01:28] } 14... Nf5 { [%clk 0:54:37] } 15. Nc2 { [%clk 0:59:28] } 15... h5 { [%clk 0:54:07] } 16. Bf4 { [%clk 0:52:39] } 16... Qf6 { [%clk 0:51:47] } 17. Qd2 { [%clk 0:51:12] } 17... Bd7 { [%clk 0:43:11] } 18. a5 { [%clk 0:42:46] } 18... Rfe8 { [%clk 0:42:03] } 19. Rd1 { [%clk 0:37:42] } 19... h4 { [%clk 0:38:59] } 20. b4 { [%clk 0:31:15] } 20... Qg6 { [%clk 0:37:30] } 21. Bf1 { [%clk 0:25:43] } 21... Re4 { [%clk 0:28:20] } 22. Be3 { [%clk 0:19:01] } 22... Bb5 { [%clk 0:20:27] } 23. Bxb5 { [%clk 0:17:49] } 23... axb5 { [%clk 0:20:55] } 24. Rf1 { [%clk 0:12:23] } 24... Rae8 { [%clk 0:20:22] } 25. Raa1 { [%clk 0:11:35] } 25... g3 { [%clk 0:12:58] } 26. Rae1 { [%clk 0:09:36] } 26... h3 { [%clk 0:11:15] } 27. fxg3 { [%clk 0:05:51] } 27... Nxe3 { [%clk 0:11:31] } 28. Rxe3 { [%clk 0:05:56] } 28... Rxe3 { [%clk 0:07:07] } 29. Nxe3 { [%clk 0:06:17] } 29... Bh6 { [%clk 0:07:33] } 30. Rf3 { [%clk 0:06:25] } 30... Qe4 { [%clk 0:07:04] } 31. Kf2 { [%clk 0:05:20] } 31... Bxe3+ { [%clk 0:07:02] } 32. Rxe3 { [%clk 0:05:31] } 32... Qxg2+ { [%clk 0:07:22] } 33. Ke1 { [%clk 0:05:56] } 33... Qg1+ { [%clk 0:07:44] } 34. Ke2 { [%clk 0:06:20] } 34... Qxh2+ { [%clk 0:08:07] } 35. Kd1 { [%clk 0:06:46] } 35... Qxd2+ { [%clk 0:08:28] } 36. Kxd2 { [%clk 0:07:11] } 36... Rxe3 { [%clk 0:08:52] } 37. Kxe3 { [%clk 0:07:36] } 37... h2 { [%clk 0:09:16] } 0-1

[Event "Reykjavik Open 2025"]
[Site "Reykjavik, Iceland"]
[Date "2025.04.15"]
[Round "9.34"]
[White "Saine, Zachary"]
[Black "Savidge, Daniel"]
[Result "0-1"]
[WhiteElo "2019"]
[WhiteFideId "2624346"]
[BlackElo "2180"]
[BlackFideId "450332"]
[TimeControl "90+30 +30 after 40 moves"]
[Variant "Standard"]
[ECO "B32"]
[Opening "Sicilian Defense: Kalashnikov Variation"]
[StudyName "Round 9"]
1. e4 { [%clk 1:30:09] } 1... c5 { [%clk 1:30:52] } 2. Nf3 { [%clk 1:30:34] } 2... Nc6 { [%clk 1:31:21] } 3. d4 { [%clk 1:30:58] } 3... cxd4 { [%clk 1:31:48] } 4. Nxd4 { [%clk 1:31:21] } 4... e5 { [%clk 1:32:14] } 5. Nb5 { [%clk 1:31:44] } 5... d6 { [%clk 1:32:42] } 6. N1c3 { [%clk 1:32:06] } 6... a6 { [%clk 1:33:08] } 7. Na3 { [%clk 1:32:31] } 7... Be7 { [%clk 1:33:36] } 8. Be3 { [%clk 1:32:17] } 8... Nf6 { [%clk 1:33:59] } 9. Nc4 { [%clk 1:32:37] } 9... b5 { [%clk 1:34:25] } 10. Nb6 { [%clk 1:33:00] } 10... Rb8 { [%clk 1:34:51] } 11. Nxc8 { [%clk 1:33:24] } 11... Qxc8 { [%clk 1:35:19] } 12. Be2 { [%clk 1:33:26] } 12... O-O { [%clk 1:35:32] } 13. a3 { [%clk 1:33:36] } 13... Na5 { [%clk 1:30:43] } 14. g4 { [%clk 1:06:57] } 14... Nc4 { [%clk 1:26:18] } 15. Bc1 { [%clk 1:07:06] } 15... d5 { [%clk 1:16:37] } 16. Nxd5 { [%clk 0:43:39] } 16... Nxd5 { [%clk 1:16:43] } 17. exd5 { [%clk 0:34:47] } 17... f5 { [%clk 1:15:27] } 18. O-O { [%clk 0:26:22] } 18... f4 { [%clk 0:54:52] } 19. Bf3 { [%clk 0:23:38] } 19... Rb6 { [%clk 0:54:26] } 20. b3 { [%clk 0:22:59] } 20... Nd6 { [%clk 0:54:11] } 21. Re1 { [%clk 0:20:52] } 21... Nf7 { [%clk 0:51:33] } 22. Bb2 { [%clk 0:15:37] } 22... Rh6 { [%clk 0:51:12] } 23. c4 { [%clk 0:12:37] } 23... bxc4 { [%clk 0:46:38] } 24. Rc1 { [%clk 0:12:19] } 24... Bd6 { [%clk 0:46:49] } 25. bxc4 { [%clk 0:10:53] } 25... Qc5 { [%clk 0:47:08] } 26. Rc2 { [%clk 0:03:16] } 26... Ng5 { [%clk 0:47:07] } 27. Bxe5 { [%clk 0:01:05] } 27... Re8 { [%clk 0:44:59] } 28. Bc3 { [%clk 0:01:29] } 28... Rxe1+ { [%clk 0:44:21] } 29. Bxe1 { [%clk 0:01:58] } 29... Qxa3 { [%clk 0:43:22] } 30. Rc3 { [%clk 0:02:27] } 30... Qc5 { [%clk 0:42:38] } 31. Qe2 { [%clk 0:02:47] } 31... Qd4 { [%clk 0:42:24] } 32. Qd3 { [%clk 0:01:02] } 32... Qe5 { [%clk 0:42:28] } 33. Rc1 { [%clk 0:01:08] } 33... Rh3 { [%clk 0:42:51] } 34. Bc3 { [%clk 0:00:43] } 34... Qe7 { [%clk 0:41:46] } 35. Qf5 { [%clk 0:00:44] } 35... Nxf3+ { [%clk 0:42:01] } 36. Kf1 { [%clk 0:00:44] } 36... Rxh2 { [%clk 0:40:51] } 37. Qc8+ { [%clk 0:00:47] } 37... Qf8 { [%clk 0:41:18] } 38. Qe6+ { [%clk 0:01:06] } 38... Kh8 { [%clk 0:41:30] } 39. Rc2 { [%clk 0:00:44] } 39... Ng5 { [%clk 0:40:32] } 40. Ke1 { [%clk 0:29:18] } 0-1

[Event "Reykjavik Open 2025"]
[Site "Reykjavik, Iceland"]
[Date "2025.04.15"]
[Round "9.35"]
[White "Eiriksson, Sigurdur"]
[Black "Kadovic, Tamara"]
[Result "0-1"]
[WhiteElo "1810"]
[WhiteFideId "2302314"]
[BlackElo "1612"]
[BlackFideId "16512065"]
[TimeControl "90+30 +30 after 40 moves"]
[Variant "Standard"]
[ECO "C47"]
[Opening "Four Knights Game: Italian Variation, Noa Gambit"]
[StudyName "Round 9"]
1. e4 { [%clk 1:30:30] } 1... e5 { [%clk 1:20:36] } 2. Nf3 { [%clk 1:29:28] } 2... Nc6 { [%clk 1:20:40] } 3. Bc4 { [%clk 1:29:37] } 3... Nf6 { [%clk 1:21:02] } 4. Nc3 { [%clk 1:29:23] } 4... Nxe4 { [%clk 1:21:17] } 5. Bxf7+ { [%clk 1:25:40] } 5... Kxf7 { [%clk 1:18:59] } 6. Nxe4 { [%clk 1:26:00] } 6... Be7 { [%clk 1:17:53] } 7. d4 { [%clk 1:25:38] } 7... Rf8 { [%clk 1:14:58] } 8. dxe5 { [%clk 1:25:15] } 8... Kg8 { [%clk 1:14:28] } 9. O-O { [%clk 1:25:04] } 9... b6 { [%clk 1:09:29] } 10. Qd5+ { [%clk 1:23:35] } 10... Kh8 { [%clk 1:09:06] } 11. Neg5 { [%clk 1:23:14] } 11... Bxg5 { [%clk 1:07:44] } 12. Nxg5 { [%clk 1:23:17] } 12... Qe8 { [%clk 1:05:34] } 13. f4 { [%clk 1:18:12] } 13... Bb7 { [%clk 0:58:42] } 14. Bd2 { [%clk 1:16:19] } 14... h6 { [%clk 0:56:58] } 15. Nf3 { [%clk 1:16:01] } 15... Rd8 { [%clk 0:55:10] } 16. Rae1 { [%clk 1:14:58] } 16... Qe6 { [%clk 0:53:31] } 17. Qd3 { [%clk 1:12:29] } 17... Qxa2 { [%clk 0:50:15] } 18. Nh4 { [%clk 1:11:46] } 18... Rfe8 { [%clk 0:46:14] } 19. b3 { [%clk 1:11:35] } 19... Qa3 { [%clk 0:44:41] } 20. Ra1 { [%clk 1:09:35] } 20... Qc5+ { [%clk 0:43:20] } 21. Kh1 { [%clk 1:05:59] } 21... Kg8 { [%clk 0:41:56] } 22. Rad1 { [%clk 1:01:04] } 22... Qf8 { [%clk 0:38:48] } 23. Bc3 { [%clk 0:57:09] } 23... Qf7 { [%clk 0:36:18] } 24. Qg3 { [%clk 0:56:45] } 24... Rf8 { [%clk 0:30:20] } 25. Qg4 { [%clk 0:54:01] } 25... Ne7 { [%clk 0:27:52] } 26. Bb4 { [%clk 0:44:58] } 26... c5 { [%clk 0:25:18] } 27. Bc3 { [%clk 0:44:48] } 27... Nd5 { [%clk 0:25:12] } 28. Bd2 { [%clk 0:44:37] } 28... Rde8 { [%clk 0:20:53] } 29. Ng6 { [%clk 0:42:24] } 29... Qf5 { [%clk 0:20:02] } 30. Qg3 { [%clk 0:42:01] } 30... Rf7 { [%clk 0:19:47] } 31. c4 { [%clk 0:42:14] } 31... Ne7 { [%clk 0:18:06] } 32. Nh4 { [%clk 0:42:04] } 32... Qe6 { [%clk 0:17:25] } 33. Bc3 { [%clk 0:40:56] } 33... Nf5 { [%clk 0:17:16] } 34. Nxf5 { [%clk 0:41:11] } 34... Qxf5 { [%clk 0:17:39] } 35. h3 { [%clk 0:40:44] } 35... Re6 { [%clk 0:17:53] } 36. Rd6 { [%clk 0:36:18] } 36... a6 { [%clk 0:14:38] } 37. Rxe6 { [%clk 0:35:57] } 37... dxe6 { [%clk 0:15:05] } 38. Qe3 { [%clk 0:34:43] } 38... Rd7 { [%clk 0:13:25] } 39. Kh2 { [%clk 0:34:54] } 39... Rd3 { [%clk 0:12:28] } 40. Qe1 { [%clk 0:34:24] } 40... Bxg2 { [%clk 0:07:13] } 0-1